fUSD/lending_fUSD_20250602
["ID","MTS","AMOUNT","RATE_DAILY","PERIOD"]
[363746641,1748859064196,-420.0,0.00019726,2]
[363746642,1748859064206,-1034.23,0.00019726,2]
[363746643,1748859064217,-420.0,0.00019726,2]
[363746644,1748859064228,-629.17,0.00019726,2]
[363746645,1748859064239,-747.74,0.00019726,2]
[363746646,1748859064250,-420.0,0.00019726,2]
[363746647,1748859064260,-420.0,0.00019726,2]
[363746648,1748859064270,-3943.83,0.00019726,2]
[363746649,1748859064280,-420.0,0.00019726,2]
[363746650,1748859064290,-420.0,0.00019726,2]
[363746651,1748859064301,-420.0,0.00019726,2]
[363746652,1748859064311,-420.0,0.00019726,2]
[363746653,1748859064322,-420.0,0.00019726,2]
[363746654,1748859064333,-420.0,0.00019726,2]
[363746655,1748859064346,-420.0,0.00019726,2]
[363746656,1748859064356,-560.04,0.00019726,2]
[363746657,1748859064366,-420.0,0.00019726,2]
[363746658,1748859064376,-448.57,0.00019726,2]
[363746659,1748859064386,-420.0,0.00019726,2]
[363746660,1748859064396,-764.26,0.00019726,2]
[363746661,1748859064406,-541.74,0.00019726,2]
[363746662,1748859064416,-420.0,0.00019726,2]
[363746663,1748859064426,-940.93,0.00019726,2]
[363746664,1748859064436,-543.5,0.00019726,2]
[363746665,1748859064446,-420.0,0.00019726,2]
[363746666,1748859064455,-420.0,0.00019726,2]
[363746667,1748859064465,-420.0,0.00019726,2]
[363746668,1748859064475,-420.0,0.00019726,2]
[363746669,1748859064485,-566.19,0.00019726,2]
[363746670,1748859064495,-420.0,0.00019726,2]
[363746671,1748859064506,-2209.17,0.00019726,2]
[363746672,1748859064515,-2241.96,0.00019726,2]
[363746673,1748859064525,-420.0,0.00019726,2]
[363746674,1748859064534,-162.68,0.00019726,2]
[363746675,1748859064545,-457.03,0.00019726,2]
[363746676,1748859064556,-420.0,0.00019726,2]
[363746677,1748859064566,-561.16,0.00019726,2]
[363746678,1748859064576,-420.0,0.00019726,2]
[363746679,1748859064585,-317.95847097,0.00019726,2]
[363746680,1748859064596,-420.0,0.00019726,2]
[363746681,1748859064606,-652.04,0.00019726,2]
[363746682,1748859064616,-420.0,0.00019726,2]
[363746683,1748859064626,-257.42,0.00019726,2]
[363746684,1748859064636,-420.0,0.00019726,2]
[363746685,1748859064646,-420.0,0.00019726,2]
[363746686,1748859064656,-555.23,0.00019726,2]
[363746687,1748859064666,-420.0,0.00019726,2]
[363746688,1748859064676,-420.0,0.00019726,2]
[363746689,1748859064690,-10242.8,0.00019726,2]
[363746690,1748859064700,-179.34,0.00019726,2]
[363746691,1748859064710,-455.26,0.00019726,2]
[363746692,1748859064720,-1092.11,0.00019726,2]
[363746693,1748859064730,-453.07,0.00019726,2]
[363746694,1748859064740,-420.0,0.00019726,2]
[363746695,1748859064750,-420.0,0.00019726,2]
[363746696,1748859064759,-420.0,0.00019726,2]
[363746697,1748859064769,-420.0,0.00019726,2]
[363746698,1748859064780,-420.0,0.00019726,2]
[363746699,1748859064791,-420.0,0.00019726,2]
[363746700,1748859064802,-498.11,0.00019726,2]
[363746701,1748859064812,-420.0,0.00019726,2]
[363746702,1748859064822,-158.91,0.00019726,2]
[363746703,1748859064832,-420.0,0.00019726,2]
[363746704,1748859064842,-420.0,0.00019726,2]
[363746705,1748859064854,-420.0,0.00019726,2]
[363746706,1748859064864,-420.0,0.00019726,2]
[363746707,1748859064875,-420.0,0.00019726,2]
[363746708,1748859064885,-1257.22,0.00019726,2]
[363746709,1748859064895,-556.66,0.00019726,2]
[363746710,1748859064905,-420.0,0.00019726,2]
[363746711,1748859064916,-485.48274884,0.00019726,2]
[363746712,1748859064926,-776.85,0.00019726,2]
[363746713,1748859064937,-420.0,0.00019726,2]
[363746714,1748859064947,-420.0,0.00019726,2]
[363746715,1748859064957,-420.0,0.00019726,2]
[363746716,1748859064967,-420.0,0.00019726,2]
[363746717,1748859064979,-420.0,0.00019726,2]
[363746718,1748859064990,-1848.13,0.00019726,2]
[363746719,1748859065000,-352.25484167,0.00019726,2]
[363746720,1748859065012,-425.78,0.00019726,2]
[363746721,1748859065023,-1476.0,0.00019726,2]
[363746722,1748859065034,-420.0,0.00019726,2]
[363746723,1748859065045,-264.03,0.00019726,2]
[363746724,1748859065054,-420.0,0.00019726,2]
[363746725,1748859065065,-420.0,0.00019726,2]
[363746726,1748859065076,-420.0,0.00019726,2]
[363746727,1748859065086,-420.0,0.00019726,2]
[363746728,1748859065097,-156.587,0.00019726,2]
[363746729,1748859065107,-1855.98389359,0.00019763,2]
[363746730,1748859065118,-171.87202547,0.00019763,2]
[363746731,1748859065128,-378.79607397,0.00019774,2]
[363746732,1748859065139,-623.58396282,0.00019799,2]
[363746733,1748859065150,-304.16531912,0.00019799,2]
[363746734,1748859065159,-286.25470277,0.00019799,2]
[363746735,1748859065170,-500.0,0.00019799,2]
[363746736,1748859065180,-500.0,0.00019799,2]
[363746737,1748859065190,-500.0,0.00019799,2]
[363746738,1748859065200,-500.0,0.00019799,2]
[363746739,1748859065211,-500.0,0.00019799,2]
[363746740,1748859065223,-500.0,0.00019799,2]
[363746741,1748859065457,-500.0,0.00019799,2]
[363746742,1748859065467,-500.0,0.00019799,2]
[363746743,1748859065477,-500.0,0.00019799,2]
[363746744,1748859065487,-500.0,0.00019799,2]
[363746745,1748859065496,-500.0,0.00019799,2]
[363746746,1748859065506,-223.84186587,0.00019799,2]
[363746747,1748859065515,-500.0,0.00019799,2]
[363746748,1748859065526,-500.0,0.00019799,2]
[363746749,1748859065536,-500.0,0.00019799,2]
[363746750,1748859065546,-496.29917083,0.00019799,2]
[363746751,1748859065556,-198.45458421,0.00019799,2]
[363746752,1748859065566,-500.0,0.00019799,2]
[363746753,1748859065576,-500.0,0.00019799,2]
[363746754,1748859065586,-168.31018945,0.00019799,2]
[363746755,1748859065596,-9515.93777583,0.000198,2]
[363746756,1748859065606,-207.4,0.00019806,2]
[363746757,1748859065615,-1855.98389359,0.00019809,2]
[363746758,1748859065625,-171.87202547,0.00019809,2]
[363746759,1748859065635,-9515.93777579,0.00019811,2]
[363746760,1748859065645,-200.0,0.00019818,2]
[363746761,1748859065655,-150.0,0.00019821,2]
[363746762,1748859065665,-9515.93777579,0.00019822,2]
[363746763,1748859065675,-150.0,0.00019826,2]
[363746764,1748859065688,-150.0,0.00019827,2]
[363746765,1748859065699,-9515.93777579,0.00019833,2]
[363746766,1748859065708,-150.0,0.00019834,2]
[363746767,1748859065719,-1083.0,0.00019835,2]
[363746768,1748859065728,-150.0,0.00019835,2]
[363746769,1748859065739,-378.79607396,0.00019835,2]
[363746770,1748859065748,-150.0,0.00019839,2]
[363746771,1748859065759,-150.0,0.00019839,2]
[363746772,1748859065769,-150.0,0.0001984,2]
[363746773,1748859065779,-150.0,0.00019841,2]
[363746774,1748859065789,-9515.93777579,0.00019844,2]
[363746775,1748859065799,-150.0,0.00019846,2]
[363746776,1748859065809,-150.0,0.00019848,2]
[363746777,1748859065819,-500.0,0.00019851,2]
[363746778,1748859065829,-500.0,0.00019851,2]
[363746779,1748859065838,-326.11492755,0.00019851,2]
[363746780,1748859065849,-151.0,0.00019851,2]
[363746781,1748859065861,-150.0,0.00019853,2]
[363746782,1748859065871,-1855.98389359,0.00019854,2]
[363746783,1748859065881,-171.87202547,0.00019854,2]
[363746784,1748859065891,-150.0,0.00019855,2]
[363746785,1748859065901,-9515.93777579,0.00019856,2]
[363746786,1748859065911,-1157.0,0.00019856,2]
[363746787,1748859065920,-7010.0,0.00019856,2]
[363746788,1748859065930,-908.143,0.00019856,2]
[363746789,1748859065940,-175.864,0.00019856,2]
[363746790,1748859065950,-4075.0,0.00019856,2]
[363746791,1748859065960,-882.0,0.00019856,2]
[363746792,1748859065970,-150.0,0.00019859,2]
[363746793,1748859065979,-151.0,0.00019863,2]
[363746794,1748859065989,-479.07,0.00019863,2]
[363746795,1748859065999,-420.0,0.00019863,2]
[363746796,1748859066009,-526.71,0.00019863,2]
[363746797,1748859066019,-420.0,0.00019863,2]
[363746798,1748859066028,-420.0,0.00019863,2]
[363746799,1748859066038,-414.58,0.00019863,2]
[363746800,1748859066047,-420.0,0.00019863,2]
[363746801,1748859066057,-420.0,0.00019863,2]
[363746802,1748859066066,-420.0,0.00019863,2]
[363746803,1748859066075,-311.2,0.00019863,2]
[363746804,1748859066088,-420.0,0.00019863,2]
[363746805,1748859066098,-271.85,0.00019863,2]
[363746806,1748859066107,-684.09,0.00019863,2]
[363746807,1748859066117,-1045.4,0.00019863,2]
[363746808,1748859066126,-424.57,0.00019863,2]
[363746809,1748859066135,-1034.23,0.00019863,2]
[363746810,1748859066145,-420.0,0.00019863,2]
[363746811,1748859066155,-629.17,0.00019863,2]
[363746812,1748859066164,-747.74,0.00019863,2]
[363746813,1748859066174,-166.64,0.00019863,2]
[363746814,1748859066183,-3943.83,0.00019863,2]
[363746815,1748859066192,-420.0,0.00019863,2]
[363746816,1748859066201,-420.0,0.00019863,2]
[363746817,1748859066211,-420.0,0.00019863,2]
[363746818,1748859066220,-420.0,0.00019863,2]
[363746819,1748859066230,-281.6,0.00019863,2]
[363746820,1748859066240,-382.69,0.00019863,2]
[363746821,1748859066250,-448.57,0.00019863,2]
[363746822,1748859066259,-420.0,0.00019863,2]
[363746823,1748859066268,-764.26,0.00019863,2]
[363746824,1748859066278,-541.74,0.00019863,2]
[363746825,1748859066287,-444.76890149,0.00019863,2]
[363746826,1748859066296,-940.93,0.00019863,2]
[363746827,1748859066305,-543.5,0.00019863,2]
[363746828,1748859066315,-420.0,0.00019863,2]
[363746829,1748859066324,-298.82,0.00019863,2]
[363746830,1748859066333,-420.0,0.00019863,2]
[363746831,1748859066343,-351.98446699,0.00019863,2]
[363746832,1748859066354,-566.19,0.00019863,2]
[363746833,1748859066364,-420.0,0.00019863,2]
[363746834,1748859066374,-2209.17,0.00019863,2]
[363746835,1748859066384,-2241.96,0.00019863,2]
[363746836,1748859066394,-420.0,0.00019863,2]
[363746837,1748859066404,-457.03,0.00019863,2]
[363746838,1748859066414,-301.59,0.00019863,2]
[363746839,1748859066423,-420.0,0.00019863,2]
[363746840,1748859066433,-420.0,0.00019863,2]
[363746841,1748859066443,-652.04,0.00019863,2]
[363746842,1748859066452,-420.0,0.00019863,2]
[363746843,1748859066462,-555.23,0.00019863,2]
[363746844,1748859066472,-420.0,0.00019863,2]
[363746845,1748859066481,-10242.8,0.00019863,2]
[363746846,1748859066491,-455.26,0.00019863,2]
[363746847,1748859066500,-1092.11,0.00019863,2]
[363746848,1748859066509,-420.0,0.00019863,2]
[363746849,1748859066519,-420.0,0.00019863,2]
[363746850,1748859066528,-420.0,0.00019863,2]
[363746851,1748859066538,-312.92,0.00019863,2]
[363746852,1748859066548,-420.0,0.00019863,2]
[363746853,1748859066557,-420.0,0.00019863,2]
[363746854,1748859066567,-420.0,0.00019863,2]
[363746855,1748859066577,-1257.22,0.00019863,2]
[363746856,1748859066586,-420.0,0.00019863,2]
[363746857,1748859066598,-776.85,0.00019863,2]
[363746858,1748859066608,-420.0,0.00019863,2]
[363746859,1748859066617,-420.0,0.00019863,2]
[363746860,1748859066627,-286.33,0.00019863,2]
[363746861,1748859066637,-420.0,0.00019863,2]
[363746862,1748859066646,-1848.13,0.00019863,2]
[363746863,1748859066655,-1476.0,0.00019863,2]
[363746864,1748859066664,-420.0,0.00019863,2]
[363746865,1748859066674,-442.49,0.00019863,2]
[363746866,1748859066698,-420.0,0.00019863,2]
[363746867,1748859066709,-420.0,0.00019863,2]
[363746868,1748859066719,-150.0,0.00019865,2]
[363746869,1748859066731,-9515.93777579,0.00019867,2]
[363746870,1748859066740,-150.0,0.00019874,2]
[363746871,1748859066750,-150.0,0.00019874,2]
[363746872,1748859066761,-943.0,0.00019874,2]
[363746873,1748859066771,-1467.0,0.00019874,2]
[363746874,1748859066781,-801.0,0.00019874,2]
[363746875,1748859066791,-635.0,0.00019874,2]
[363746876,1748859066801,-588.0,0.00019874,2]
[363746877,1748859066810,-1271.0,0.00019874,2]
[363746878,1748859066820,-925.0,0.00019874,2]
[363746879,1748859066830,-557.0,0.00019874,2]
[363746880,1748859066840,-9515.93777579,0.00019878,2]
[363746881,1748859066852,-150.0,0.00019878,2]
[363746882,1748859066862,-150.0,0.00019881,2]
[363746883,1748859066872,-12500.0,0.00019882,2]
[363746884,1748859066882,-151.0,0.00019883,2]
[363746885,1748859066892,-150.0,0.00019887,2]
[363746886,1748859066902,-150.0,0.00019888,2]
[363746887,1748859066912,-9515.93777579,0.00019889,2]
[363746888,1748859066923,-283.829455,0.0001989,2]
[363746889,1748859066932,-12500.0,0.00019891,2]
[363746890,1748859066942,-5800.0,0.00019892,2]
[363746891,1748859066953,-150.0,0.00019892,2]
[363746892,1748859066963,-150.0,0.00019893,2]
[363746893,1748859066973,-150.0,0.00019893,2]
[363746894,1748859066983,-150.0,0.00019899,2]
[363746895,1748859066993,-5800.0,0.000199,2]
[363746896,1748859067003,-9515.93777579,0.000199,2]
[363746897,1748859067013,-12500.0,0.000199,2]
[363746898,1748859067023,-561.09149513,0.000199,2]
[363746899,1748859067033,-1855.98389359,0.000199,2]
[363746900,1748859067043,-6202.88259512,0.000199,2]
[363746901,1748859067053,-199.14593737,0.000199,3]
[363746902,1748859067063,-171.87202547,0.000199,2]
[363746903,1748859067074,-150.0,0.00019908,2]
[363746904,1748859067085,-150.0,0.00019911,2]
[363746905,1748859067095,-150.0,0.00019912,2]
[363746906,1748859067105,-150.0,0.00019912,2]
[363746907,1748859067115,-150.0,0.00019914,2]
[363746908,1748859067127,-150.0,0.00019914,2]
[363746909,1748859067136,-150.0,0.00019917,2]
[363746910,1748859067146,-285.55825682,0.00019919,2]
[363746911,1748859067155,-150.0,0.00019922,2]
[363746912,1748859067166,-150.0,0.00019922,2]
[363746913,1748859067175,-571.91929123,0.00019922,2]
[363746914,1748859067185,-150.0,0.00019922,2]
[363746915,1748859067195,-150.0,0.00019922,2]
[363746916,1748859067204,-150.0,0.00019922,2]
[363746917,1748859067214,-460.554181,0.00019922,2]
[363746918,1748859067224,-6149.09830101,0.00019922,2]
[363746919,1748859067234,-4077.11097878,0.00019922,2]
[363746920,1748859067243,-720.0448508,0.00019922,2]
[363746921,1748859067253,-150.0,0.00019928,2]
[363746922,1748859067264,-162.21107944,0.00019936,2]
[363746923,1748859067274,-168.01978505,0.00019936,2]
[363746924,1748859067285,-1941.56534051,0.00019936,2]
[363746925,1748859067296,-1232.13968575,0.00019936,2]
[363746926,1748859067306,-1263.9110044,0.00019936,2]
[363746927,1748859067317,-168.65677843,0.00019936,2]
[363746928,1748859067327,-150.0,0.00019938,2]
[363746929,1748859067337,-150.0,0.00019943,2]
[363746930,1748859067347,-150.0,0.00019947,2]
[363746931,1748859067358,-150.0,0.00019957,2]
[363746932,1748859067367,-150.0,0.00019972,2]
[363746933,1748859067377,-500.0,0.00019973,2]
[363746934,1748859067387,-500.0,0.00019973,2]
[363746935,1748859067398,-500.0,0.00019973,2]
[363746936,1748859067412,-500.0,0.00019973,2]
[363746937,1748859067422,-500.0,0.00019973,2]
[363746938,1748859067432,-500.0,0.00019973,2]
[363746939,1748859067442,-500.0,0.00019973,2]
[363746940,1748859067451,-202.81788402,0.00019973,2]
[363746941,1748859067461,-150.0,0.00019973,2]
[363746942,1748859067471,-158.7325083,0.00019973,2]
[363746943,1748859067481,-500.0,0.00019973,2]
[363746944,1748859067491,-155.96936233,0.00019973,2]
[363746945,1748859067500,-150.0,0.00019973,2]
[363746946,1748859067510,-150.0,0.00019973,2]
[363746947,1748859067519,-1917.0,0.00019973,2]
[363746948,1748859067529,-159.73842981,0.00019973,2]
[363746949,1748859067539,-150.0,0.00019973,2]
[363746950,1748859067549,-154.52245518,0.00019973,2]
[363746951,1748859067559,-150.0,0.00019973,2]
[363746952,1748859067569,-296.07597191,0.00019973,2]
[363746953,1748859067579,-150.0,0.00019973,2]
[363746954,1748859067588,-500.0,0.00019973,2]
[363746955,1748859067599,-500.0,0.00019973,2]
[363746956,1748859067609,-500.0,0.00019973,2]
[363746957,1748859067620,-500.0,0.00019973,2]
[363746958,1748859067630,-500.0,0.00019973,2]
[363746959,1748859067639,-500.0,0.00019973,2]
[363746960,1748859067649,-500.0,0.00019973,2]
[363746961,1748859067659,-500.0,0.00019973,2]
[363746962,1748859067668,-500.0,0.00019973,2]
[363746963,1748859067680,-500.0,0.00019973,2]
[363746964,1748859067691,-212.61835403,0.00019973,2]
[363746965,1748859067701,-500.0,0.00019973,2]
[363746966,1748859067711,-500.0,0.00019973,2]
[363746967,1748859067722,-500.0,0.00019973,2]
[363746968,1748859067732,-150.0,0.00019973,2]
[363746969,1748859067743,-500.0,0.00019973,2]
[363746970,1748859067753,-500.0,0.00019973,2]
[363746971,1748859067764,-500.0,0.00019973,2]
[363746972,1748859067774,-500.0,0.00019973,2]
[363746973,1748859067786,-500.0,0.00019973,2]
[363746974,1748859067884,-150.0,0.00019973,2]
[363746975,1748859067894,-500.0,0.00019973,2]
[363746976,1748859067905,-500.0,0.00019973,2]
[363746977,1748859067915,-500.0,0.00019973,2]
[363746978,1748859067925,-500.0,0.00019973,2]
[363746979,1748859067935,-500.0,0.00019973,2]
[363746980,1748859067945,-500.0,0.00019973,2]
[363746981,1748859067956,-500.0,0.00019973,2]
[363746982,1748859067966,-500.0,0.00019973,2]
[363746983,1748859067976,-500.0,0.00019973,2]
[363746984,1748859067986,-500.0,0.00019973,2]
[363746985,1748859067995,-500.0,0.00019973,2]
[363746986,1748859068006,-500.0,0.00019973,2]
[363746987,1748859068016,-500.0,0.00019973,2]
[363746988,1748859068026,-500.0,0.00019973,2]
[363746989,1748859068036,-500.0,0.00019973,2]
[363746990,1748859068045,-500.0,0.00019973,2]
[363746991,1748859068054,-500.0,0.00019973,2]
[363746992,1748859068064,-500.0,0.00019973,2]
[363746993,1748859068073,-500.0,0.00019973,2]
[363746994,1748859068083,-500.0,0.00019973,2]
[363746995,1748859068099,-500.0,0.00019973,2]
[363746996,1748859068109,-500.0,0.00019973,2]
[363746997,1748859068119,-500.0,0.00019973,2]
[363746998,1748859068128,-500.0,0.00019973,2]
[363746999,1748859068139,-500.0,0.00019973,2]
[363747000,1748859068149,-500.0,0.00019973,2]
[363747001,1748859068159,-500.0,0.00019973,2]
[363747002,1748859068170,-500.0,0.00019973,2]
[363747003,1748859068181,-500.0,0.00019973,2]
[363747004,1748859068191,-500.0,0.00019973,2]
[363747005,1748859068201,-592.0,0.00019973,2]
[363747006,1748859068211,-500.0,0.00019973,2]
[363747007,1748859068220,-500.0,0.00019973,2]
[363747008,1748859068230,-500.0,0.00019973,2]
[363747009,1748859068240,-500.0,0.00019973,2]
[363747010,1748859068249,-513.0,0.00019973,2]
[363747011,1748859068259,-500.0,0.00019973,2]
[363747012,1748859068269,-150.0,0.00019973,2]
[363747013,1748859068278,-150.0,0.00019973,2]
[363747014,1748859068287,-500.0,0.00019973,2]
[363747015,1748859068297,-500.0,0.00019973,2]
[363747016,1748859068306,-150.0,0.00019973,2]
[363747017,1748859068316,-150.0,0.00019973,2]
[363747018,1748859068326,-500.0,0.00019973,2]
[363747019,1748859068335,-500.0,0.00019973,2]
[363747020,1748859068346,-500.0,0.00019973,2]
[363747021,1748859068356,-150.0,0.00019975,2]
[363747022,1748859068366,-150.0,0.00019981,2]
[363747023,1748859068376,-192.77793536,0.00019986,2]
[363747024,1748859068385,-431.33,0.00019986,3]
[363747025,1748859068395,-192.77793536,0.0001999,2]
[363747026,1748859068404,-150.0,0.00019991,2]
[363747027,1748859068414,-225.28,0.00019995,2]
[363747028,1748859068425,-686.52,0.00019995,2]
[363747029,1748859068434,-686.52,0.00019995,2]
[363747030,1748859068444,-686.52,0.00019995,2]
[363747031,1748859068453,-547.51,0.00019995,2]
[363747032,1748859068463,-300.0,0.00019995,2]
[363747033,1748859068474,-300.0,0.00019995,2]
[363747034,1748859068483,-674069.6686698,0.00019996,2]
[363747035,1748859068493,-4327.8508322,0.00019996,2]
[363747036,1748859068503,-4122.8701556,0.00019996,2]
[363747037,1748859068513,-10555.1793648,0.00019996,2]
[363747038,1748859068523,-5464.3404901,0.00019996,2]
[363747039,1748859068533,-1072.2250437,0.00019996,2]
[363747040,1748859068543,-300.0,0.00019998,2]
[363747041,1748859068552,-730.54765802,0.00019998,2]
[363747042,1748859068562,-686.52,0.00019998,2]
[363747043,1748859068572,-300.0,0.00019998,2]
[363747044,1748859068582,-300.0,0.00019999,2]
[363747045,1748859068591,-300.0,0.00019999,2]
[363747046,1748859068604,-300.0,0.00019999,2]
[363747047,1748859068614,-300.0,0.00019999,2]
[363747048,1748859068623,-300.0,0.00019999,2]
[363747049,1748859068633,-300.0,0.00019999,2]
[363747050,1748859068643,-300.0,0.00019999,2]
[363747051,1748859068657,-150.0,0.00019999,2]
[363747052,1748859068667,-138464.14453964,0.00019999,7]
[363747053,1748859068678,-15141.90301776,0.00019999,2]
[363747054,1748859068691,-686.52,0.00019999,2]
[363747055,1748859068700,-686.52,0.00019999,2]
[363747056,1748859068710,-686.52,0.00019999,2]
[363747057,1748859068720,-686.52,0.00019999,2]
[363747058,1748859068730,-686.52,0.00019999,2]
[363747059,1748859068740,-686.52,0.00019999,2]
[363747060,1748859068749,-686.52,0.00019999,2]
[363747061,1748859068761,-686.52,0.00019999,2]
[363747062,1748859068770,-686.52,0.00019999,2]
[363747063,1748859068780,-686.52,0.00019999,2]
[363747064,1748859068789,-686.52,0.00019999,2]
[363747065,1748859068799,-686.52,0.00019999,2]
[363747066,1748859068809,-686.52,0.00019999,2]
[363747067,1748859068818,-686.52,0.00019999,2]
[363747068,1748859068828,-686.52,0.00019999,2]
[363747069,1748859068838,-686.52,0.00019999,2]
[363747070,1748859068849,-686.52,0.00019999,2]
[363747071,1748859068858,-686.52,0.00019999,2]
[363747072,1748859068868,-686.52,0.00019999,2]
[363747073,1748859068877,-686.57369321,0.00019999,2]
[363747074,1748859068887,-178.39213865,0.00019999,2]
[363747075,1748859068897,-235.96442972,0.00019999,2]
[363747076,1748859068907,-500.0,0.00019999,2]
[363747077,1748859068918,-500.0,0.00019999,2]
[363747078,1748859068927,-500.0,0.00019999,2]
[363747079,1748859068937,-438.53438257,0.00019999,2]
[363747080,1748859068947,-168.82538289,0.00019999,2]
[363747081,1748859068957,-500.0,0.00019999,2]
[363747082,1748859068967,-614.19540783,0.00019999,2]
[363747083,1748859068976,-500.0,0.00019999,2]
[363747084,1748859068986,-500.0,0.00019999,2]
[363747085,1748859068995,-500.0,0.00019999,2]
[363747086,1748859069005,-500.0,0.00019999,2]
[363747087,1748859069015,-500.0,0.00019999,2]
[363747088,1748859069024,-500.0,0.00019999,2]
[363747089,1748859069035,-393.68163556,0.0002,2]
[363747090,1748859069044,-432041.79584302,0.0002,2]
[363747091,1748859069054,-48755.39593979,0.0002,2]
[363747092,1748859069064,-150.0,0.0002,2]
[363747093,1748859069074,-1533.8265915,0.0002,2]
[363747094,1748859069084,-5000.0,0.0002,3]
[363747095,1748859069094,-6412.65,0.0002,5]
[363747096,1748859069106,-29201.60210914,0.0002,2]
[363747097,1748859069672,-300.0,0.00019177,2]
[363747098,1748859069686,-308.64522524,0.00019178,2]
[363747099,1748859069720,-111.35477476,0.00019178,2]
[363747100,1748859069730,-328.74320545,0.00019178,2]
[363747101,1748859069750,-91.25679455,0.00019178,2]
[363747102,1748859069762,-420.0,0.00019315,2]
[363747103,1748859069772,-420.0,0.00019315,2]
[363747104,1748859069782,-420.0,0.00019315,2]
[363747105,1748859069793,-523.36417664,0.00019452,2]
[363747106,1748859069805,-4.89582336,0.00019452,2]
[363747107,1748859069815,-420.0,0.00019452,2]
[363747108,1748859069824,-242.26,0.00019452,2]
[363747109,1748859069834,-420.0,0.00019589,2]
[363747110,1748859069844,-300.34,0.00019726,2]
[363747111,1748859069855,-378.79607396,0.00019896,2]
[363747112,1748859069864,-379.24461387,0.0002,4]
[363747113,1748859069875,-3521.45055298,0.0002,2]
[363747114,1748859070010,-420.0,0.00019178,2]
[363747115,1748859070019,-126.6000126,0.00019178,2]
[363747116,1748859070039,-293.3999874,0.00019178,2]
[363747117,1748859070049,-420.0,0.00019178,2]
[363747118,1748859070058,-27.88708953,0.00019315,2]
[363747119,1748859141751,641.49,0.00016984,2]
[363747120,1748859144003,-150.0,0.000238,30]
[363747121,1748859163667,-2.0,0.000238,30]
[363747122,1748859163703,-148.0,0.000245,30]
[363747124,1748859285456,1490.842713,0.00018982,2]
[363747125,1748859321842,230.2,0.00018636,2]
[363747127,1748859351026,1237.01,0.00018591,2]
[363747129,1748859498095,23900.0,0.00018511,2]
[363747130,1748859498283,14914.05,0.00018511,2]
[363747131,1748859503343,1000.0,0.00023,30]
[363747132,1748859504498,1000.0,0.00023,30]
[363747157,1748859526346,573.0,0.00023,30]
[363747259,1748859733904,3800.0,0.000241,120]
[363747260,1748859758928,150.0,0.00019001,2]
[363747261,1748859760874,1000.0,0.0001844,2]
[363747265,1748859824669,-400.89454856,0.00019078,2]
[363747266,1748859824694,-400.0,0.00019097,2]
[363747267,1748859824717,-400.0,0.00019143,2]
[363747268,1748859824742,-1200.0,0.00019165,2]
[363747269,1748859824765,-300.0,0.00019165,2]
[363747270,1748859824789,-151.0,0.00019166,2]
[363747271,1748859824813,-4465.35561573,0.00019166,2]